{"text_format":"1","workbook":"xlsx","n_sheets":2,"sheets":["Roeiers","Betalingen"],"not_rendered":{"charts":0,"images":0,"macros":1,"external_links":0,"defined_names":1,"comments":1,"pivot_tables":0},"unopened":[],"bounds":{"document_bytes":16777216,"sheet_cells":100000,"rows_first":2000,"rows_last":500,"rows_between":2000,"halvings":0,"cell_chars":16384,"cell_head_chars":4096},"cells_cut":0,"cells_raw":0,"read":"whole","date_system":"1900"}

{"sheet":"Roeiers","index":0,"n_rows":21,"n_cols":11,"rows_kept":21,"cut":false,"hidden":true,"merged":[]}
["A-B","C-D","E-F","G-H","I-J","K-L","M","N-O-P-Q","R","S-T-U","V-W-X-Y-Z"]
["Aafke","Cyriel","Eline","Gerard","Jaap","Khadija","Maaike","Nina","Raul","Samantha","Vedi"]
["Anke","Daniël","Emma","Hans","Jan","Kees","Maarten","Ole","Ria","Sarah","Wesley"]
["Anne","David","Eppo","Hans D","Janine","Koos","Maarten Z","Paul","Rik","Siep","Wijnand"]
["Anne Dirk","David B","Eric","Hellen","Janna","Lana","Maartje","Peter","Robert","Susan","Wilbert"]
["Annelie","Dirk Jan","Ernst","Hendrien","Jelle","Leon","Marianne","Pieter","Robert N","Susan K","Wilbert K"]
["Annemarie","Dorien","Ernstjan","Herman","Johan","Liesbeth","Mario","Puck","Ronald K","Tijs","Willemijn"]
["Antoinette","Cancel LotT","Febe","Hubert","John",null,"Mario D",null,"Rutger","Ton"]
["Arienne","Cancel Liefde","Floris","Hugo","Jolande",null,"Marjolijn",null,null,"Ton K"]
["Arjan",null,"Freek","Gert Jan V RR","Jonas",null,"Mark",null,null,"Ton P"]
["Arthur",null,null,"Harry RR","Joram",null,"Mark B",null,null,"Totaal"]
["Audrey",null,null,null,"Judy",null,"Mark K"]
["Benjamin",null,null,null,null,null,"Martin"]
["Bert",null,null,null,null,null,"Martin B"]
[null,null,null,null,null,null,"Mathilda"]
[null,null,null,null,null,null,"Merlijn"]
[null,null,null,null,null,null,"Michael"]
[null,null,null,null,null,null,"Michel"]
[null,null,null,null,null,null,"Michiel"]
[null,null,null,null,null,null,"Mireille"]
[null,null,null,null,null,null,"Monique"]

{"sheet":"Betalingen","index":1,"n_rows":88,"n_cols":66,"rows_kept":88,"cut":false,"hidden":false,"merged":[]}
[null,null,"Begroting per roeier per wedstrijd",15,null,null,null,null,null,"datum","2024-04-06","2024-04-06","2024-04-13","2024-04-13","2024-04-20","2024-04-20","2024-04-27","2024-05-10","2024-05-11","2024-05-25","2024-06-08","2024-06-08","2024-06-15","2024-06-22","2024-07-06","2024-08-24","2024-07-13","2024-07-20","2024-09-07","2024-09-14","2024-09-14","2024-09-21","2024-09-21","2024-09-28","2024-10-12","2024-10-26","2023-11-02"," 3-11-2024","2024-04-06","2024-04-06","2024-04-13","2024-04-13","2024-04-20","2024-04-20","2024-05-10","2024-05-25","2024-06-08","2024-06-08","2024-06-25","2024-06-22","2024-07-06","2024-07-13","2024-07-20","2024-09-07","2024-09-14","2024-09-14","2024-09-21","2024-09-21","2024-09-28","2024-10-12","2024-10-26","2023-11-02"," 3-11-2024","2024-06-08","2024-08-24","2024-07-06"]
[null,null,null,null,null,null,null,null,null,"Wedstrijdgeld totaal",115,115,null,null,null,null,65,110,null,null,null,110,null,null,null,65,null,null,95,105,null,null,90,null,137,null,123,null,null,null,null,70,70,null,null,null,null,110,null,null,null,null,null,95,105,null,55,null,80,null,null,106,null,110,20]
["Wedstrijdgeld storten op bankrekening:",null,null,null,null,null,null,null,null,"Aantal deelnemers",8.5,8.5,null,null,null,null,9,9,null,null,null,6,null,null,"Cancel",9,null,"Cancel",9,9,null,null,9,null,8,0,10,10,null,null,null,7,6,null,"Cancel",null,null,6,null,null,null,null,null,7,6,null,6,null,5,null,1,7,7,7,5,"Cancel"]
["NL97 RABO 0149 0372 60 t.n.v. TIOG",null,null,null,null,null,null,null,null,"Wedstrijdgeld per persoon",{"$f":"IF(K3=\"CANCEL\",\"n/a\",IF(K3>0,ROUNDUP(K2/K3,2),\"n/a\"))","v":13.53},{"$f":"IF(L3=\"CANCEL\",\"n/a\",IF(L3>0,ROUNDUP(L2/L3,2),\"n/a\"))","v":13.53},"n/a","n/a","n/a","n/a",7.2299999999999995,12.23,"n/a","n/a","n/a",18.34,"n/a","n/a","n/a",{"$f":"IF(Z3=\"CANCEL\",\"n/a\",IF(Z3>0,ROUNDUP(Z2/Z3,2),\"n/a\"))","v":7.2299999999999995},"n/a","n/a",10.56,11.67,"n/a","n/a",10,"n/a",17.130000000000003,"n/a",12.3,0,"n/a","n/a","n/a",10,11.67,"n/a","n/a","n/a","n/a",18.34,"n/a","n/a","n/a","n/a","n/a",13.58,17.5,"n/a",9.17,"n/a",16,"n/a",0,15.15,0,15.72,4,"n/a"]
[null,null,null,null,null,null,null,"Totaal betalings-achterstand:","Saldo:","Totaal gebruikt","Vechten op de Vecht, Weesp LotT HT","Vechten op de Vecht, Weesp LotT","Utrechtse Grachtenrace RondDom  LotT ","Harlinger Kampioenschap, Harlingen LotT ","Slag om de Zaan, Zaandam LotT ","Roeisloepenrace Grou LotT ","IFK sloeproeien, Lemmer LotT ","HT Race, Harlingen Terschelling  LotT ","Memorial Regatta LotT","Vuurtorenrace, Urk LotT ","Haal-op-gelijk-in-Harderwijk, Harderwijk LotT ","Kaagrace, Warmond Leuve","Volvo Zwolse Grachtenrace, Zwolle LotT ","Kameleonrace, Terherne LotT ","Roeiregatta Haringvliet, Hellevoetsluis LotT ","Slag om Gent, LotT","Respec op de Lek, Culemborg LotT ","Mosselrace, Bruinisse  LotT ","Maasrace, Rotterdam  LotT ","Slag om Willemstad LotT ","ZwarteWaterRace, Zwartsluis  LotT ","Slag om Makkum LotT ","Veerse Meerrace, Kortgene LotT ","Langweerder Sloepenrace, Langweer LotT ","Grachtenrace, Amsterdam LotT ","Liwwadster Rondje, Leeuwarden LotT ","Muiden-Pampus-Muiden LotT Za","Muiden-Pampus-Muiden LotT Zo","Vechten op de Vecht, Weesp Leuve D","Vechten op de Vecht, Weesp Leuve H","Utrechtse Grachtenrace RondDom  Leuve ","Harlinger Kampioenschap, Harlingen Leuve ","Slag om de Zaan, Zaandam Leuve ","Roeisloepenrace Grou Leuve ","Memorial Regatta Leuve","Vuurtorenrace, Urk Leuve ","Haal-op-gelijk-in-Harderwijk, Harderwijk Leuve ","Kaagrace, Warmond (G)Leuve ","Volvo Zwolse Grachtenrace, Zwolle Leuve ","Kameleonrace, Terherne Leuve ","Roeiregatta Haringvliet, Hellevoetsluis Leuve ","Respec op de Lek, Culemborg Leuve ","Mosselrace, Bruinisse  Leuve ","Maasrace, Rotterdam  Leuve ","Slag om Willemstad Leuve ","ZwarteWaterRace, Zwartsluis  Leuve ","Slag om Makkum Leuve ","Veerse Meerrace, Kortgene Leuve ","Langweerder Sloepenrace, Langweer Leuve ","Grachtenrace, Amsterdam Leuve ","Liwwadster Rondje, Leeuwarden Leuve ","Muiden-Pampus-Muiden Leuve Za","Muiden-Pampus-Muiden Leuve Zo","Kaagrace, Warmond Tropicana's","Slag om Gent, Liefde","Roeiregatta Haringvliet, Hellevoetsluis Heerenliefde"]
["Wedstrijdroeiers","Tegoed 2023","Gestort 2024",null,null,null,null,{"$f":"SUMIF(I7:I88,\"<0,0\")","v":0},{"$f":"SUM(I7:I170)","v":647.34999999999991},"totaal verdeeld ->",{"$f":"SUM(K7:K541)","v":115.005},115.005,0,0,0,0,65.069999999999993,110.07000000000002,0,0,0,110.04,0,0,0,65.069999999999993,0,0,95.04,105.03,0,0,90,0,137.04,0,116.85,6.15,0,0,0,70,70.02,0,0,0,0,110.04,0,0,0,0,0,95.06,105,0,{"$f":"SUM(BE7:BE541)","v":55.02},0,80,0,0,106.05000000000001,0,110.04,20,0]
["Aafke",18.830000000000013,200,null,null,null,null,null,{"$f":"SUM(B7:H7)-J7","v":74.430000000000007},{"$f":"SUM(K7:DL7)","v":144.4},{"$f":"$K$4","v":13.53},null,null,null,null,null,{"$f":"$Q$4","v":7.2299999999999995},{"$f":"$R$4","v":12.23},null,null,null,null,null,null,{"$f":"$Y$4","v":"n/a"},null,null,null,null,null,null,null,null,null,null,null,null,null,null,null,null,{"$f":"$AP$4","v":10},{"$f":"$AQ$4","v":11.67},null,null,null,null,{"$f":"$AV$4","v":18.34},null,null,null,null,null,{"$f":"$BB$4","v":13.58},{"$f":"$BC$4","v":17.5},null,{"$f":"$BE$4","v":9.17},null,{"$f":"$BG$4","v":16},null,null,{"$f":"$BJ$4","v":15.15},{"$f":"$BK$4","v":0}]
["Anita",0,null,null,null,null,null,null,0,0]
["Anke",0,3.34,0.66,null,null,null,null,{"$f":"SUM(B9:H9)-J9","v":0},4,null,null,null,null,null,null,null,null,null,null,null,null,null,null,null,null,null,null,null,null,null,null,null,null,null,null,null,null,null,null,null,null,null,null,null,null,null,null,null,null,null,null,null,null,null,null,null,null,null,null,null,null,null,null,{"$f":"$BM$4","v":4}]
["Anne",0,null,null,null,null,null,null,0,0]
["Anne Dirk",7.7299999999999969,60,null,null,null,null,null,15.419999999999987,52.31,null,null,null,null,null,null,null,null,null,null,null,{"$f":"$V$4","v":18.34},null,null,null,null,null,{"$f":"$AB$4","v":"n/a"},null,{"$f":"$AD$4","v":11.67},null,null,{"$f":"$AG$4","v":10},null,null,null,{"$f":"$AK$4","v":12.3},{"$f":"$AL$4","v":0},null,null,null,null,null,null,{"$f":"$AS$4","v":"n/a"}]
["Annemarie",18.439999999999998,200,null,null,null,null,null,107.53999999999999,110.9,{"$f":"$K$4","v":13.53},null,null,null,null,null,{"$f":"$Q$4","v":7.2299999999999995},{"$f":"$R$4","v":12.23},null,null,null,null,null,null,{"$f":"$Y$4","v":"n/a"},null,null,null,null,null,null,null,null,null,null,null,null,null,null,null,null,{"$f":"$AP$4","v":10},{"$f":"$AQ$4","v":11.67},null,null,null,null,{"$f":"$AV$4","v":18.34},null,null,null,null,null,{"$f":"$BB$4","v":13.58},null,null,{"$f":"$BE$4","v":9.17},null,null,null,null,{"$f":"$BJ$4","v":15.15},{"$f":"$BK$4","v":0}]
["Arienne",47.359999999999985,39.119999999999997,null,null,null,null,null,{"$f":"SUM(B13:H13)-J13","v":0},86.48,{"$f":"$K$4","v":13.53},null,null,null,null,null,{"$f":"$Q$4","v":7.2299999999999995},{"$f":"$R$4","v":12.23},null,null,null,null,null,null,null,null,null,null,null,null,null,null,null,null,null,null,null,null,null,null,null,null,{"$f":"$AQ$4","v":11.67},null,null,null,null,null,null,null,null,null,null,null,{"$f":"$BC$4","v":17.5},null,{"$f":"$BE$4","v":9.17},null,null,null,null,{"$f":"$BJ$4","v":15.15},{"$f":"$BK$4","v":0}]
["Audrey",10.620000000000001,1.05,null,null,null,null,null,{"$f":"SUM(B14:H14)-J14","v":0},11.67,null,null,null,null,null,null,null,null,null,null,null,null,null,null,null,null,null,null,null,{"$f":"$AD$4","v":11.67}]
["Benjamin",0,75,10,15.76,null,null,null,{"$f":"SUM(B15:H15)-J15","v":0},100.76,null,{"$f":"$L$4","v":13.53},null,null,null,null,null,null,null,null,null,{"$f":"$V$4","v":18.34},null,null,null,{"$f":"$Z$4","v":7.2299999999999995},null,{"$f":"$AB$4","v":"n/a"},{"$f":"$AC$4","v":10.56},{"$f":"$AD$4","v":11.67},null,null,{"$f":"$AG$4","v":10},null,{"$f":"$AI$4","v":17.130000000000003},null,{"$f":"$AK$4","v":12.3},{"$f":"$AL$4","v":0}]
["Cyriel",0,null,null,null,null,null,null,{"$f":"SUM(B16:H16)-J16","v":0},0]
["Daniël",0,50,null,null,null,null,null,19.339999999999996,30.660000000000004,null,{"$f":"$L$4","v":13.53},null,null,null,null,null,null,null,null,null,null,null,null,null,null,null,null,null,null,null,null,null,null,{"$f":"$AI$4","v":17.130000000000003}]
["Danique",0,15.15,null,null,null,null,null,{"$f":"SUM(B18:H18)-J18","v":0},{"$f":"SUM(K18:DL18)","v":15.15},null,null,null,null,null,null,null,null,null,null,null,null,null,null,null,null,null,null,null,null,null,null,null,null,null,null,null,null,null,null,null,null,null,null,null,null,null,null,null,null,null,null,null,null,null,null,null,null,null,null,null,15.15]
["David",0,null,null,null,null,null,null,0,0]
["David B",0,null,null,null,null,null,null,{"$f":"SUM(B20:H20)-J20","v":0},0]
["Dick",0,10,null,null,null,null,null,{"$f":"SUM(B21:H21)-J21","v":2.7700000000000005},7.2299999999999995,null,null,null,null,null,null,null,null,null,null,null,null,null,null,null,{"$f":"$Z$4","v":7.2299999999999995}]
["Dirk Jan",0,null,null,null,null,null,null,0,0]
["Dorien",0,null,null,null,null,null,null,{"$f":"SUM(B23:H23)-J23","v":0},0]
["Eline",27.200000000000003,null,null,null,null,null,null,6.6400000000000006,20.560000000000002,null,null,null,null,null,null,null,null,null,null,null,null,null,null,null,null,null,{"$f":"$AB$4","v":"n/a"},{"$f":"$AC$4","v":10.56},null,null,null,{"$f":"$AG$4","v":10}]
["Eppo",12.080000000000002,null,null,null,null,null,null,12.080000000000002,0]
["Eric",0,13.53,null,null,null,null,null,0,13.53,null,{"$f":"$L$4","v":13.53}]
["Ernst",15,10,null,null,null,null,null,6.1000000000000014,18.899999999999999,null,null,null,null,null,null,null,null,null,null,null,null,null,null,null,{"$f":"$Z$4","v":7.2299999999999995},null,null,null,{"$f":"$AD$4","v":11.67}]
["Ernstjan",12.619999999999997,null,null,null,null,null,null,12.619999999999997,0]
["Febe",0,15.72,null,null,null,null,null,{"$f":"SUM(B29:H29)-J29","v":0},15.72,null,null,null,null,null,null,null,null,null,null,null,null,null,null,null,null,null,null,null,null,null,null,null,null,null,null,null,null,null,null,null,null,null,null,null,null,null,null,null,null,null,null,null,null,null,null,null,null,null,null,null,null,null,{"$f":"$BL$4","v":15.72}]
["Floris",0,13.53,10,7.79,null,null,null,0,31.32,null,{"$f":"$L$4","v":13.53},null,null,null,null,null,null,null,null,null,null,null,null,null,{"$f":"$Z$4","v":7.2299999999999995},null,null,{"$f":"$AC$4","v":10.56}]
["Gerard",0.38000000000000256,null,null,null,null,null,null,0.38000000000000256,0]
["Hans",0,null,null,null,null,null,null,0,0]
["Hans D",0,6.15,null,null,null,null,null,0,6.15,null,null,null,null,null,null,null,null,null,null,null,null,null,null,null,null,null,null,null,null,null,null,null,null,null,null,null,6.15]
["Hellen",0,100,37.21,null,null,null,null,0,137.20999999999998,{"$f":"$K$4","v":13.53},null,null,null,null,null,{"$f":"$Q$4","v":7.2299999999999995},{"$f":"$R$4","v":12.23},null,null,null,null,null,null,null,null,null,null,null,null,null,null,null,null,{"$f":"$AI$4","v":17.130000000000003},null,null,null,null,null,null,{"$f":"$AP$4","v":10},{"$f":"$AQ$4","v":11.67},null,null,null,null,{"$f":"$AV$4","v":18.34},null,null,null,null,null,{"$f":"$BB$4","v":13.58},{"$f":"$BC$4","v":17.5},null,null,null,{"$f":"$BG$4","v":16}]
["Hendrien",0,25,null,null,null,null,null,5.2800000000000011,19.72,null,null,null,null,null,null,null,null,null,null,null,null,null,null,null,null,null,null,null,null,null,null,null,null,null,null,null,null,null,null,null,null,null,null,null,null,null,null,null,null,null,null,null,null,null,null,null,null,null,null,null,null,null,{"$f":"$BL$4","v":15.72},{"$f":"$BM$4","v":4}]
["Herman",5.6399999999999935,30,null,null,null,null,null,4.9799999999999898,30.660000000000004,null,{"$f":"$L$4","v":13.53},null,null,null,null,null,null,null,null,null,null,null,null,null,null,null,null,null,null,null,null,null,null,{"$f":"$AI$4","v":17.130000000000003}]
["Hubert",0,null,null,null,null,null,null,{"$f":"SUM(B37:H37)-J37","v":0},0]
["Hugo",39.989999999999995,10,null,null,null,null,null,42.76,7.2299999999999995,null,null,null,null,null,null,null,null,null,null,null,null,null,null,null,{"$f":"$Z$4","v":7.2299999999999995}]
["Ilja",0,null,null,null,null,null,null,0,0]
["Jan",0,null,null,null,null,null,null,0,0]
["Janna",3.8400000000000034,50,60,60,null,null,null,29.439999999999998,{"$f":"SUM(K41:DL41)","v":144.4},{"$f":"$K$4","v":13.53},null,null,null,null,null,{"$f":"$Q$4","v":7.2299999999999995},{"$f":"$R$4","v":12.23},null,null,null,null,null,null,null,null,null,null,null,null,null,null,null,null,null,null,null,null,null,null,null,{"$f":"$AP$4","v":10},{"$f":"$AQ$4","v":11.67},null,null,null,null,{"$f":"$AV$4","v":18.34},null,null,null,null,null,{"$f":"$BB$4","v":13.58},{"$f":"$BC$4","v":17.5},null,{"$f":"$BE$4","v":9.17},null,{"$f":"$BG$4","v":16},null,null,{"$f":"$BJ$4","v":15.15},{"$f":"$BK$4","v":0}]
["Jelle",0,null,null,null,null,null,null,0,0]
["Johan",8.5999999999999943,3.7,null,null,null,null,null,0,12.3,null,null,null,null,null,null,null,null,null,null,null,null,null,null,null,null,null,null,null,null,null,null,null,null,null,null,{"$f":"$AK$4","v":12.3},{"$f":"$AL$4","v":0}]
["John",11.61,40,null,null,null,null,null,{"$f":"SUM(B44:H44)-J44","v":12.71},38.9,null,null,null,null,null,null,null,null,null,null,null,{"$f":"$V$4","v":18.34},null,null,null,null,null,{"$f":"$AB$4","v":"n/a"},{"$f":"$AC$4","v":10.56},null,null,null,{"$f":"$AG$4","v":10},null,null,null,null,null,null,null,null,null,null,null,{"$f":"$AS$4","v":"n/a"}]
["Jolande",0,100,44.4,null,null,null,null,{"$f":"SUM(B45:H45)-J45","v":0},144.4,{"$f":"$K$4","v":13.53},null,null,null,null,null,{"$f":"$Q$4","v":7.2299999999999995},{"$f":"$R$4","v":12.23},null,null,null,null,null,null,{"$f":"$Y$4","v":"n/a"},null,null,null,null,null,null,null,null,null,null,null,null,null,null,null,null,{"$f":"$AP$4","v":10},{"$f":"$AQ$4","v":11.67},null,null,null,null,{"$f":"$AV$4","v":18.34},null,null,null,null,null,{"$f":"$BB$4","v":13.58},{"$f":"$BC$4","v":17.5},null,{"$f":"$BE$4","v":9.17},null,{"$f":"$BG$4","v":16},null,null,{"$f":"$BJ$4","v":15.15},{"$f":"$BK$4","v":0}]
["Judy",0,25,null,null,null,null,null,{"$f":"SUM(B46:H46)-J46","v":5.2800000000000011},19.72,null,null,null,null,null,null,null,null,null,null,null,null,null,null,null,null,null,null,null,null,null,null,null,null,null,null,null,null,null,null,null,null,null,null,null,null,null,null,null,null,null,null,null,null,null,null,null,null,null,null,null,null,null,{"$f":"$BL$4","v":15.72},{"$f":"$BM$4","v":4}]
["Joram",0.21999999999997044,null,null,null,null,null,null,0.21999999999997044,0]
["Khadija",0,11.67,null,null,null,null,null,{"$f":"SUM(B48:H48)-J48","v":0},11.67,null,null,null,null,null,null,null,null,null,null,null,null,null,null,null,null,null,null,null,{"$f":"$AD$4","v":11.67}]
["Koos",0,null,null,null,null,null,null,0,0]
["Leon",9.4699999999999918,50,null,null,null,null,null,33.639999999999993,25.83,null,{"$f":"$L$4","v":13.53},null,null,null,null,null,null,null,null,null,null,null,null,{"$f":"$Y$4","v":"n/a"},null,null,null,null,null,null,null,null,null,null,null,{"$f":"$AK$4","v":12.3},{"$f":"$AL$4","v":0}]
["Maaike",23.839999999999989,100,8.89,null,null,null,null,{"$f":"SUM(B51:H51)-J51","v":0},132.72999999999999,{"$f":"$K$4","v":13.53},null,null,null,null,null,{"$f":"$Q$4","v":7.2299999999999995},{"$f":"$R$4","v":12.23},null,null,null,null,null,null,null,null,null,null,null,null,null,null,null,null,null,null,null,null,null,null,null,{"$f":"$AP$4","v":10},null,null,null,null,null,{"$f":"$AV$4","v":18.34},null,null,null,null,null,{"$f":"$BB$4","v":13.58},{"$f":"$BC$4","v":17.5},null,{"$f":"$BE$4","v":9.17},null,{"$f":"$BG$4","v":16},null,null,{"$f":"$BJ$4","v":15.15},{"$f":"$BK$4","v":0}]
["Maarten Z",5.66,25,null,null,null,null,null,17.130000000000003,13.53,null,{"$f":"$L$4","v":13.53}]
["Marianne",0,null,null,null,null,null,null,0,0]
["Mario",0,15,null,null,null,null,null,{"$f":"SUM(B54:H54)-J54","v":3.33},11.67,null,null,null,null,null,null,null,null,null,null,null,null,null,null,null,null,null,null,null,{"$f":"$AD$4","v":11.67}]
["Mark",0,null,null,null,null,null,null,0,0]
["Mark B",0,10,37.22,null,null,null,null,{"$f":"SUM(B56:H56)-J56","v":0},47.22,null,null,null,null,null,null,null,null,null,null,null,null,null,null,{"$f":"$Y$4","v":"n/a"},{"$f":"$Z$4","v":7.2299999999999995},null,{"$f":"$AB$4","v":"n/a"},{"$f":"$AC$4","v":10.56},null,null,null,null,null,{"$f":"$AI$4","v":17.130000000000003},null,{"$f":"$AK$4","v":12.3},{"$f":"$AL$4","v":0}]
["Mark K",0,10,null,null,null,null,null,{"$f":"SUM(B57:H57)-J57","v":0},10,null,null,null,null,null,null,null,null,null,null,null,null,null,null,null,null,null,null,null,null,null,null,{"$f":"$AG$4","v":10}]
["Martin",2.9699999999999989,null,null,null,null,null,null,2.9699999999999989,0]
["Martin B",0,50,10,18.53,null,null,null,{"$f":"SUM(B59:H59)-J59","v":0},78.529999999999987,null,{"$f":"$L$4","v":13.53},null,null,null,null,null,null,null,null,null,{"$f":"$V$4","v":18.34},null,null,null,{"$f":"$Z$4","v":7.2299999999999995},null,{"$f":"$AB$4","v":"n/a"},null,null,null,null,{"$f":"$AG$4","v":10},null,{"$f":"$AI$4","v":17.130000000000003},null,{"$f":"$AK$4","v":12.3},{"$f":"$AL$4","v":0}]
["Mathilda",0,32.86,null,null,null,null,null,{"$f":"SUM(B60:H60)-J60","v":0},32.86,null,null,null,null,null,null,null,null,null,null,null,null,null,null,null,null,null,null,{"$f":"$AC$4","v":10.56},null,null,null,{"$f":"$AG$4","v":10},null,null,null,{"$f":"$AK$4","v":12.3},{"$f":"$AL$4","v":0}]
["Merlijn",0,50,null,null,null,null,null,{"$f":"SUM(B61:H61)-J61","v":30.28},19.72,null,null,null,null,null,null,null,null,null,null,null,null,null,null,null,null,null,null,null,null,null,null,null,null,null,null,null,null,null,null,null,null,null,null,null,null,null,null,null,null,null,null,null,null,null,null,null,null,null,null,null,null,null,{"$f":"$BL$4","v":15.72},{"$f":"$BM$4","v":4}]
["Michel",0,38.380000000000003,null,null,null,null,null,{"$f":"SUM(B62:H62)-J62","v":6.1499999999999986},32.230000000000004,null,null,null,null,null,null,null,null,null,null,null,null,null,null,{"$f":"$Y$4","v":"n/a"},null,null,null,{"$f":"$AC$4","v":10.56},{"$f":"$AD$4","v":11.67},null,null,{"$f":"$AG$4","v":10},null,null,null,null,null,null,null,null,null,null,null,{"$f":"$AS$4","v":"n/a"}]
["Michiel",0,6.15,null,null,null,null,null,{"$f":"SUM(B63:H63)-J63","v":0},6.15,null,null,null,null,null,null,null,null,null,null,null,null,null,null,null,null,null,null,null,null,null,null,null,null,null,null,6.15]
["Nienke",0,null,null,null,null,null,null,0,0]
["Olivier",0,null,null,null,null,null,null,{"$f":"SUM(B65:H65)-J65","v":0},0]
["Paul",0,15.72,2.62,10.56,null,null,null,{"$f":"SUM(B66:H66)-J66","v":0},28.9,null,null,null,null,null,null,null,null,null,null,null,{"$f":"$V$4","v":18.34},null,null,null,null,null,{"$f":"$AB$4","v":"n/a"},{"$f":"$AC$4","v":10.56}]
["Peter",0,null,null,null,null,null,null,0,0]
["Petra",0,null,null,null,null,null,null,{"$f":"SUM(B68:H68)-J68","v":0},0]
["Pieter",9.25,null,null,null,null,null,null,9.25,0]
["Ria",0,25,null,null,null,null,null,{"$f":"SUM(B70:H70)-J70","v":5.2800000000000011},19.72,null,null,null,null,null,null,null,null,null,null,null,null,null,null,null,null,null,null,null,null,null,null,null,null,null,null,null,null,null,null,null,null,null,null,null,null,null,null,null,null,null,null,null,null,null,null,null,null,null,null,null,null,null,{"$f":"$BL$4","v":15.72},{"$f":"$BM$4","v":4}]
["Rieneke",0.53000000000000114,6.7,null,null,null,null,null,0,7.2299999999999995,null,null,null,null,null,null,null,null,null,null,null,null,null,null,null,{"$f":"$Z$4","v":7.2299999999999995}]
["Rik",1.3299999999999841,25,10,36.090000000000003,null,null,null,0,72.42,{"$f":"$K$4/2","v":6.7649999999999997},{"$f":"$K$4/2","v":6.7649999999999997},null,null,null,null,{"$f":"$Q$4","v":7.2299999999999995},{"$f":"$R$4","v":12.23},null,null,null,null,null,null,null,null,null,null,null,null,null,null,null,null,{"$f":"$AI$4","v":17.130000000000003},null,{"$f":"$AK$4","v":12.3},{"$f":"$AL$4","v":0},null,null,null,{"$f":"$AP$4","v":10}]
["Robert",11.409999999999997,null,null,null,null,null,null,11.409999999999997,{"$f":"SUM(K73:DL73)","v":0}]
["Robert N",15,null,null,null,null,null,null,15,0]
["Ronald",0,null,null,null,null,null,null,0,0]
["Samantha",0,15.72,null,null,null,null,null,{"$f":"SUM(B76:H76)-J76","v":0},15.72,null,null,null,null,null,null,null,null,null,null,null,null,null,null,null,null,null,null,null,null,null,null,null,null,null,null,null,null,null,null,null,null,null,null,null,null,null,null,null,null,null,null,null,null,null,null,null,null,null,null,null,null,null,{"$f":"$BL$4","v":15.72}]
["Sarah",2.9899999999999949,10,null,null,null,null,null,5.7599999999999953,7.2299999999999995,null,null,null,null,null,null,null,null,null,null,null,null,null,null,{"$f":"$Y$4","v":"n/a"},{"$f":"$Z$4","v":7.2299999999999995}]
["Siep",104.22,null,null,null,null,null,null,104.22,0]
["Susan",0,15.72,null,null,null,null,null,{"$f":"SUM(B79:H79)-J79","v":0},15.72,null,null,null,null,null,null,null,null,null,null,null,null,null,null,null,null,null,null,null,null,null,null,null,null,null,null,null,null,null,null,null,null,null,null,null,null,null,null,null,null,null,null,null,null,null,null,null,null,null,null,null,null,null,{"$f":"$BL$4","v":15.72}]
["Thom",0,null,null,null,null,null,null,{"$f":"SUM(B80:H80)-J80","v":0},0]
["Tijs",0,null,null,null,null,null,null,0,0]
["Ton",0,null,null,null,null,null,null,0,0]
["Ton K",15.5,null,null,null,null,null,null,{"$f":"SUM(B83:H83)-J83","v":15.5},0]
["Ton P",0,51.1,null,null,null,null,null,{"$f":"SUM(B84:H84)-J84","v":0},51.100000000000009,null,null,null,null,null,null,null,null,null,null,null,null,null,null,{"$f":"$Y$4","v":"n/a"},null,null,{"$f":"$AB$4","v":"n/a"},null,{"$f":"$AD$4","v":11.67},null,null,10,null,{"$f":"$AI$4","v":17.130000000000003},null,{"$f":"$AK$4","v":12.3},{"$f":"$AL$4","v":0}]
["Wijnand",0,10.56,null,null,null,null,null,{"$f":"SUM(B85:H85)-J85","v":0},10.56,null,null,null,null,null,null,null,null,null,null,null,null,null,null,{"$f":"$Y$4","v":"n/a"},null,null,{"$f":"$AB$4","v":"n/a"},{"$f":"$AC$4","v":10.56}]
["Wilbert",6.0200000000000014,null,null,null,null,null,null,6.0200000000000014,0]
["Wilbert K",0,50,null,null,null,null,null,{"$f":"SUM(B87:H87)-J87","v":19.990000000000002},{"$f":"SUM(K87:DL87)","v":30.009999999999998},null,null,null,null,null,null,null,null,null,null,null,{"$f":"$V$4","v":18.34},null,null,null,null,null,null,null,{"$f":"$AD$4","v":11.67}]
["Willemijn",0,50,null,null,null,null,null,{"$f":"SUM(B88:H88)-J88","v":3.4300000000000068},{"$f":"SUM(K88:DL88)","v":46.569999999999993},{"$f":"$K$4","v":13.53},null,null,null,null,null,{"$f":"$Q$4","v":7.2299999999999995},{"$f":"$R$4","v":12.23},null,null,null,null,null,null,null,null,null,null,null,null,null,null,null,null,null,null,null,null,null,null,null,null,null,null,null,null,null,null,null,null,null,null,null,{"$f":"$BB$4","v":13.58}]